bitfinex/quotes_ETHUSD_20220215
["timestamp","ask_amount","ask_price","bid_price","bid_amount"]
[1644931560167,1.60945,3106.4,3105.4,10.9296]
[1644931560378,1.60945,3106.4,3105.4,7.896]
[1644931560379,0.80472,3106.4,3105.4,7.896]
[1644931560566,0.80472,3106.4,3106.1,0.80473]
[1644931560769,1.60945,3106.3,3106.1,0.80473]
[1644931560969,2.41412,3106.3,3106.1,0.80473]
[1644931561974,1.60933,3106.3,3106.1,0.80473]
[1644931562170,0.80467,3106.3,3106.1,0.80473]
[1644931563020,1.60931,3106.3,3106.1,0.80473]
[1644931565121,2.64587693,3106.4,3106.1,0.80473]
[1644931565320,2.64339074,3106.4,3106.1,0.80473]
[1644931565518,1.61170619,3106.4,3106.1,0.80473]
[1644931566370,1.60922,3106.4,3106.1,0.80473]
[1644931566570,1.61170619,3106.4,3106.1,0.80473]
[1644931567671,1.60922,3106.4,3106.1,0.80473]
[1644931567872,1.61170619,3106.4,3106.1,0.80473]
[1644931568073,2.71413,3106.3,3106.1,0.80473]
[1644931568273,1.90938,3106.3,3106.1,0.80473]
[1644931569075,2.7140594,3106.3,3106.1,0.80473]
[1644931570122,1.90938,3106.3,3106.1,0.80473]
[1644931571626,2.7140678,3106.3,3106.1,0.80473]
[1644931571825,2.7140678,3106.3,3105.8,1.6095]
[1644931571826,1.90938,3106.3,3106.0,0.80478]
[1644931572027,1.90938,3106.3,3105.3,0.001]
[1644931572028,0.80478,3106.2,3105.3,0.001]
[1644931572224,0.80478,3106.0,3105.3,0.001]
[1644931572627,1.16191341,3105.7,3105.2,0.001]
[1644931573226,1.16191341,3105.7,3105.2,1.001]
[1644931573427,0.80479,3105.8,3105.3,0.001]
[1644931573877,0.80365319,3105.8,3105.6,1.60961]
[1644931574570,0.80365319,3105.8,3105.6,2.5811494]
[1644931574766,1.60842319,3105.8,3105.6,1.60961]
[1644931575767,1.90842319,3105.8,3105.6,1.60961]
[1644931576469,1.15541629,3105.7,3105.6,1.60961]
[1644931577269,2.71322649,3105.8,3105.6,1.60961]
[1644931577523,1.90842319,3105.8,3105.6,1.60961]
[1644931578722,1.60842319,3105.8,3105.6,1.60961]
[1644931578923,1.90842319,3105.8,3105.6,1.60961]
[1644931579325,1.90842319,3105.8,3104.8,1.0]
[1644931579526,0.805,3105.5,3104.8,1.0]
[1644931579727,0.805,3105.3,3104.8,1.0]
[1644931579924,0.805,3105.3,3104.5,0.6258]
[1644931580127,0.805,3105.3,3104.5,0.62828618]
[1644931580926,1.6100116,3105.2,3104.9,0.80501]
[1644931581173,3.45632786,3105.2,3104.9,0.80501]
[1644931581773,3.75632786,3105.2,3104.9,0.80501]
[1644931582476,3.75632786,3105.2,3104.5,0.1608]
[1644931582477,0.8051078,3105.0,3104.5,0.0032322]
[1644931582677,4.0254856,3105.1,3105.0,48.3898122]
[1644931582874,4.3254856,3105.1,3105.0,47.4903935]
[1644931583076,5.1307356,3105.1,3105.0,47.4903935]
[1644931584075,4.8307356,3105.1,3105.0,47.4903935]
[1644931585728,5.1307356,3105.1,3105.0,47.4903935]
[1644931588333,4.3254856,3105.1,3105.0,47.4903935]
[1644931588777,5.69600343,3105.1,3105.0,47.4903935]
[1644931588978,5.69600343,3105.1,3105.0,46.0284843]
[1644931589780,4.3254856,3105.1,3105.0,46.0284843]
[1644931590779,5.69602325,3105.1,3105.0,46.0284843]
[1644931590979,5.69602325,3105.1,3105.0,45.26424969]
[1644931591179,5.69602325,3105.1,3105.0,37.17108856]
[1644931591380,12.16102325,3105.1,3105.0,5.74750637]
[1644931591580,16.14762318,3105.1,3105.0,0.17790351]
[1644931591981,0.80544,3104.8,3104.5,0.0032322]
[1644931592183,1.61086,3104.7,3104.5,0.0032322]
[1644931592423,2.21086,3104.7,3104.5,0.0032322]
[1644931592840,7.40545,3104.7,3104.0,0.01370888]
[1644931593026,0.8055061,3104.5,3104.0,0.01370888]
[1644931593228,0.8055061,3104.5,3104.0,0.02663959]
[1644931593229,1.91104,3104.4,3104.0,0.02663959]
[1644931594129,1.91104,3104.4,3103.5,0.001]
[1644931594327,0.80557,3104.2,3104.0,0.00323251]
[1644931594527,1.61112,3104.2,3104.0,0.00323251]
[1644931595128,4.15,3104.1,3103.4,7.2490231]
[1644931595331,4.15,3104.1,3103.2,7.43]
[1644931595332,0.8056172,3104.0,3103.2,7.43]
[1644931595528,1.61138,3103.8,3103.5,0.01293231]
[1644931595737,1.61138,3103.8,3102.9,7.41900591]
[1644931595928,0.3,3103.7,3102.9,0.0173824]
[1644931596393,1.6113317,3103.6,3102.9,0.0173824]
[1644931596590,0.80582,3103.4,3102.9,0.0173824]
[1644931596988,4.30582,3103.4,3102.9,0.0173824]
[1644931597488,1.61173,3103.2,3102.9,8.24e-05]
[1644931597687,0.8059129,3103.1,3102.9,8.24e-05]
[1644931597887,1.1059129,3103.1,3102.9,8.24e-05]
[1644931598691,0.465,3103.0,3102.9,8.24e-05]
[1644931599388,0.80587,3103.0,3102.9,8.24e-05]
[1644931599589,1.6118129,3103.1,3102.9,8.24e-05]
[1644931600537,3.5,3103.0,3102.9,8.24e-05]
[1644931600739,0.8059129,3103.1,3102.9,8.24e-05]
[1644931601137,0.80567,3103.2,3102.9,8.24e-05]
[1644931601934,0.80572,3103.1,3102.9,8.24e-05]
[1644931602338,2.2113942,3103.1,3102.9,8.24e-05]
[1644931602637,2.2113942,3103.1,3102.8,0.00246966]
[1644931602638,0.8059,3103.0,3102.8,0.00246966]
[1644931602835,3.99903627,3103.0,3102.8,0.00246966]
[1644931603036,3.22463547,3102.9,3102.8,0.00246966]
[1644931603672,3.22463547,3102.9,3102.7,0.00515884]
[1644931603673,4.83642547,3102.9,3102.7,0.00515884]
[1644931603873,6.74818547,3102.9,3102.7,0.00515884]
[1644931604074,6.74818547,3102.9,3102.7,0.00762862]
[1644931604075,3.2145071,3102.8,3102.7,0.00762862]
[1644931604675,4.70305,3102.9,3102.7,0.00762862]
[1644931604876,7.6544674,3102.9,3102.7,0.00515884]
[1644931605075,4.40305,3102.9,3102.7,0.00515884]
[1644931605279,2.79126,3102.9,3102.7,0.00515884]
[1644931605877,3.09126,3102.9,3102.7,0.00515884]
[1644931606081,2.79126,3102.9,3102.7,0.00515884]
[1644931606481,4.40301,3102.9,3102.7,0.00515884]
[1644931607278,2.79126,3102.9,3102.7,0.00515884]
[1644931608425,5.5090967,3102.9,3102.7,0.00515884]
[1644931608624,6.0149267,3102.9,3102.7,0.00515884]
[1644931609520,6.3149267,3102.9,3102.7,0.00515884]
[1644931609723,6.0149267,3102.9,3102.7,0.00515884]
[1644931609922,6.3149267,3102.9,3102.7,0.00515884]
[1644931610924,6.0149267,3102.9,3102.7,0.00515884]
[1644931611580,6.3149267,3102.9,3102.7,0.00515884]
[1644931611779,6.0149267,3102.9,3102.7,0.00515884]
[1644931613680,6.8208167,3102.9,3102.7,0.00515884]
[1644931613878,0.3,3102.8,3102.7,0.00515884]
[1644931614778,7.1208167,3102.9,3102.7,0.00515884]
[1644931615623,0.3,3102.8,3102.7,0.00515884]
[1644931618880,1.3,3102.8,3102.7,0.00515884]
[1644931619177,1.29916866,3102.8,3102.7,0.00515884]
[1644931619579,6.76416866,3102.8,3102.7,0.00515884]
[1644931620177,1.76416866,3102.8,3102.7,0.01031768]
[1644931620476,2.57020346,3102.8,3102.7,0.01031768]
[1644931621278,0.01819359,3102.6,3102.1,0.00976852]
[1644931621490,0.8060731,3102.5,3102.1,0.00976852]
[1644931621778,1.8060731,3102.5,3102.2,0.04206334]
[1644931622179,1.8060731,3102.5,3101.9,0.04376861]
[1644931622630,3.4181731,3102.5,3101.6,0.00453443]
[1644931622828,1.6120242,3102.3,3101.6,0.00842391]
[1644931623030,3.5240542,3102.3,3101.6,0.00842391]
[1644931623228,3.5240542,3102.3,3102.0,0.00322599]
[1644931624031,3.5240542,3102.3,3102.0,0.00220347]
[1644931624229,0.80604,3102.2,3101.8,0.00388948]
[1644931624429,0.80604,3102.2,3102.0,0.00322603]
[1644931624629,3.2241221,3102.2,3102.0,0.00322603]
[1644931625231,3.2241221,3102.2,3101.8,0.00388948]
[1644931625433,0.80606,3102.1,3101.8,0.00388948]
[1644931625632,3.2242689,3102.1,3101.8,0.00388948]
[1644931626679,0.80607,3102.0,3101.8,0.00388948]
[1644931626876,2.4181846,3102.0,3101.8,0.00388948]
[1644931627277,1.6121046,3102.0,3101.8,0.00388948]
[1644931628078,2.4181846,3102.0,3101.8,0.00388948]
[1644931629384,2.4181846,3102.0,3101.5,0.00777896]
[1644931629385,0.80618,3101.8,3101.5,0.00777896]
[1644931629582,2.4187072,3101.8,3101.5,0.00777896]
[1644931629784,3.99015,3101.7,3101.5,0.00777896]
[1644931630226,3.69015,3101.7,3101.5,0.00777896]
[1644931630427,0.80625,3101.6,3101.5,0.00777896]
[1644931631429,4.49343316,3101.6,3101.5,0.00777896]
[1644931631626,0.80625,3101.6,3101.5,0.00777896]
[1644931631831,2.4187572,3101.8,3101.5,0.00777896]
[1644931632028,1.2186,3102.4,3101.5,0.00777896]
[1644931632428,0.8060709,3102.0,3101.5,1.19550013]
[1644931632931,0.8060709,3102.0,3101.5,0.00777896]
[1644931633127,0.8060709,3102.0,3101.5,0.01101046]
[1644931633677,1.6121649,3101.9,3101.5,0.01101046]
[1644931633878,0.80605,3102.0,3101.5,0.00777896]
[1644931633879,1.61206,3102.0,3101.5,0.00777896]
[1644931634078,1.61206,3102.0,3101.5,0.01101041]
[1644931634577,1.61206,3102.0,3101.5,0.01201041]
[1644931634578,0.80603,3101.8,3101.5,0.01201041]
[1644931634778,0.8061063,3101.7,3101.5,0.01201041]
[1644931634978,0.8061063,3101.7,3101.5,0.00777896]
[1644931635180,0.8061063,3101.7,3101.5,0.01201043]
[1644931635382,1.2186,3102.4,3101.5,0.01201043]
[1644931635578,1.2186,3102.4,3101.5,2.43918083]
[1644931635778,1.2186,3102.4,3101.6,1.61274]
[1644931635978,0.80591,3102.3,3101.7,0.001]
[1644931636578,0.80591,3102.3,3101.7,0.80687]
[1644931636778,0.80595,3102.2,3101.7,1.02606654]
[1644931636982,0.80595,3102.2,3101.8,0.001]
[1644931637424,0.80599,3102.1,3101.8,0.001]
[1644931637625,0.80599,3102.1,3101.7,0.00777896]
[1644931638024,1.61201,3102.1,3101.7,0.00777896]
[1644931638226,0.01819359,3102.6,3101.7,0.00777896]
[1644931638427,0.01819359,3102.6,3102.2,0.91615779]
[1644931638825,0.01819359,3102.6,3101.8,0.00877896]
[1644931639030,0.82399359,3102.6,3101.8,0.00877896]
[1644931639228,1.62982709,3102.6,3101.8,0.00777896]
[1644931639535,1.62980359,3102.6,3101.8,0.00777896]
[1644931639926,1.62980359,3102.6,3101.9,1.00786107]
[1644931640126,1.62980359,3102.6,3102.0,0.001]
[1644931640326,0.8059541,3102.4,3102.0,0.001]
[1644931640527,0.8059,3102.3,3102.0,0.001]
[1644931641382,4.06159569,3102.6,3102.0,0.80688]
[1644931641582,1.61191,3102.4,3101.9,0.90886107]
[1644931641785,1.61191,3102.4,3101.9,0.9099341]
[1644931642188,4.77658805,3102.4,3101.9,0.9099341]
[1644931642487,1.61191,3102.4,3101.9,0.9099341]
[1644931642683,0.80596,3102.2,3101.9,0.9099341]
[1644931642884,0.80596,3102.2,3101.9,1.7158441]
[1644931643685,0.80587,3102.4,3101.9,1.7158441]
[1644931643884,0.80587,3102.4,3102.0,0.80587]
[1644931644086,0.80589,3102.3,3102.0,0.80587]
[1644931644928,0.80591,3102.2,3101.9,0.9099341]
[1644931645328,0.80591,3102.2,3101.9,1.7158441]
[1644931645528,1.62997359,3102.6,3101.9,1.7158441]
[1644931645725,1.62997359,3102.6,3101.9,0.9099341]
[1644931645925,0.80584,3102.5,3101.9,0.9099341]
[1644931646126,0.01819359,3102.6,3101.9,0.9099341]
[1644931646327,0.01819359,3102.6,3102.0,0.80589]
[1644931646927,0.01819359,3102.6,3102.0,0.80788307]
[1644931647126,0.01819359,3102.6,3102.0,0.00199307]
[1644931647529,0.82400359,3102.6,3102.0,0.00199307]
[1644931647727,3.19510309,3102.5,3102.0,0.00099307]
[1644931647926,1.62986359,3102.6,3102.0,0.00099307]
[1644931648227,0.01819359,3102.6,3102.0,0.00099307]
[1644931650078,0.01819359,3102.6,3102.4,0.9359257]
[1644931650777,0.82401359,3102.6,3102.4,0.9359257]
[1644931650978,0.01819359,3102.6,3102.4,0.9359257]
[1644931653333,0.0026639,3103.2,3102.5,6.7]
[1644931653533,0.0026639,3103.2,3102.6,0.465]
[1644931653733,0.0026639,3103.2,3102.6,1.465]
[1644931654130,3.5,3103.8,3102.6,1.465]
[1644931654330,3.5,3104.2,3103.0,0.80542]
[1644931654531,1.37076417,3104.1,3104.0,1.19428079]
[1644931655029,2.17623417,3104.1,3104.0,1.19428079]
[1644931655431,0.80547,3104.1,3103.5,0.80548]
[1644931656177,1.3708003,3104.0,3103.5,0.80548]
[1644931656381,0.80547,3104.1,3103.5,0.80548]
[1644931656578,1.3708042,3104.0,3103.5,0.80548]
[1644931656779,1.3708042,3104.0,3103.7,0.83813691]
[1644931657085,1.3708042,3104.0,3103.3,1.61083]
[1644931657086,6.15324608,3104.0,3102.9,3.3741]
[1644931657282,1.3708042,3103.9,3102.7,1.61236006]
[1644931657784,2.1763942,3103.9,3102.7,0.00107006]
[1644931657979,0.8057,3103.7,3102.8,0.80568]
[1644931658179,1.3708042,3103.8,3102.8,0.80568]
[1644931658180,0.00266435,3103.5,3102.8,0.80568]
[1644931658980,0.00266435,3103.5,3103.0,0.80554]
[1644931659181,1.30556,3104.3,3103.0,0.80554]
[1644931659182,0.5,3104.3,3103.0,0.80554]
[1644931659382,1.37075553,3104.2,3103.8,1.08901573]
[1644931659582,1.37075553,3104.2,3102.8,0.25]
[1644931659782,4.57591281,3104.2,3102.7,0.00107006]
[1644931660031,2.17626553,3104.1,3102.8,0.80552]
[1644931660230,2.17626553,3104.1,3103.1,0.8055]
[1644931660231,0.8055038,3103.9,3103.1,0.8055]
[1644931660432,3.7219905,3104.3,3103.2,1.61101]
[1644931660631,0.00266435,3103.6,3103.3,0.93426284]
[1644931661430,2.1762851,3104.2,3103.4,0.80544]
[1644931661628,2.1762851,3104.2,3103.4,0.80651089]
[1644931661629,0.00266435,3103.6,3103.4,0.80651089]
[1644931662631,1.37078956,3104.1,3103.4,0.80651089]
[1644931662830,1.37078956,3104.1,3103.6,0.80542]
[1644931663036,0.00266435,3103.7,3103.6,0.80542]
[1644931663230,0.00266435,3103.7,3103.6,1.77113516]
[1644931663434,0.00266435,3103.7,3103.4,0.00107089]
[1644931663880,1.37079857,3104.1,3103.4,0.80659089]
[1644931664082,4.03815888,3104.0,3103.4,0.80659089]
[1644931664279,0.00266435,3103.7,3103.4,0.80659089]
[1644931664478,0.00266435,3103.7,3103.5,0.93746592]
[1644931665079,2.17626581,3104.3,3103.5,1.74294592]
[1644931665281,0.00266435,3103.8,3103.5,1.74294592]
[1644931666280,4.91765113,3104.3,3103.5,1.74294592]
[1644931666281,5.15783742,3104.3,3103.5,1.74294592]
[1644931666483,6.38378292,3104.6,3103.5,1.74294592]
[1644931666484,0.00266435,3103.8,3103.5,1.74294592]
[1644931666880,0.00266435,3103.8,3103.6,0.00208315]
[1644931667081,0.00266435,3103.8,3103.7,0.80518]
[1644931667529,2.19348292,3104.6,3103.7,0.80518]
[1644931667729,0.00266435,3103.9,3103.7,0.80518]
[1644931668729,2.19348292,3104.6,3104.1,1.14016671]
[1644931669132,3.14273435,3104.5,3103.8,1.61061]
[1644931669329,0.13819997,3104.7,3103.8,1.61061]
[1644931669533,0.80535,3104.5,3103.8,1.61061]
[1644931669732,4.8599708,3104.5,3103.8,1.61061]
[1644931669930,4.0546208,3104.5,3103.8,1.61061]
[1644931670131,0.00266435,3104.3,3103.8,1.61061]
[1644931670331,0.00266435,3104.3,3104.0,0.80536]
[1644931670533,0.00266435,3104.3,3103.6,0.00208315]
[1644931670534,1.61339435,3104.3,3103.6,0.00208315]
[1644931670733,1.1054116,3104.2,3103.6,0.00108315]
[1644931670938,0.8054116,3104.2,3103.6,0.00108315]
[1644931671382,0.00266435,3104.1,3103.6,0.00108315]
[1644931671582,1.91376435,3104.1,3103.6,0.00108315]
[1644931671783,1.67092905,3104.0,3103.8,0.00099318]
[1644931671981,0.00198636,3103.7,3103.5,0.00108959]
[1644931672181,1.56321276,3103.8,3103.5,0.00108959]
[1644931672682,1.56587711,3103.8,3103.5,0.00108959]
[1644931672882,3.29146058,3103.7,3103.5,0.00108959]
[1644931673082,4.90268378,3103.7,3103.5,0.00108959]
[1644931673282,1.6112232,3103.7,3103.5,0.00108959]
[1644931673682,2.4168232,3103.7,3103.5,0.00108959]
[1644931674084,3.20850576,3103.6,3103.5,0.00108959]
[1644931674283,2.4168232,3103.7,3103.5,0.00108959]
[1644931676738,3.19815991,3103.6,3103.5,0.00108959]
[1644931676940,3.19815991,3103.6,3103.1,0.8056]
[1644931677142,1.6111903,3103.5,3103.1,0.8056]
[1644931677340,0.8055903,3103.5,3103.1,0.8056]
[1644931677542,3.19815991,3103.6,3103.1,0.8056]
[1644931677746,0.00266435,3103.7,3103.3,1.00158775]
[1644931678142,0.00266435,3103.7,3103.3,1.80712775]
[1644931678342,3.19065656,3103.7,3103.3,1.80712775]
[1644931678543,0.80555,3103.6,3103.3,1.80712775]
[1644931678795,1.6110954,3103.6,3103.3,1.80712775]
[1644931679392,1.6110954,3103.6,3103.3,0.80554]
[1644931679797,1.61375975,3103.6,3103.3,0.80554]
[1644931680396,1.61375975,3103.6,3103.4,0.8564125]
[1644931680796,0.80555,3103.6,3103.4,1.6619225]
[1644931680997,0.80821435,3103.6,3103.4,0.8564125]
[1644931681996,0.80555,3103.6,3103.4,0.8564125]
[1644931682828,1.6110971,3103.6,3103.3,0.80553]
[1644931684529,4.83686947,3103.6,3103.3,0.80553]
[1644931684729,1.61376045,3103.6,3103.2,0.86865054]
[1644931684929,0.80556,3103.5,3103.2,0.86865054]
[1644931685730,0.80822435,3103.5,3103.2,0.86865054]
[1644931686030,0.00266435,3103.5,3103.2,1.67420054]
[1644931686686,1.37076569,3104.1,3103.2,1.67420054]
[1644931686881,3.3687,3104.6,3103.2,5.0368396]
[1644931687081,0.00266435,3103.5,3103.2,5.8422396]
[1644931687283,0.00266435,3103.5,3103.3,0.80545]
[1644931687883,3.07577,3104.2,3103.3,0.80545]
[1644931687884,4.58271133,3104.1,3103.3,0.80545]
[1644931688081,1.37082759,3104.0,3103.3,0.80545]
[1644931688283,0.00266435,3103.6,3103.3,0.80545]
[1644931688486,0.00266435,3103.6,3103.5,0.80541]
[1644931689086,1.37076915,3104.1,3103.5,0.80541]
[1644931689289,1.2014,3104.6,3103.5,0.80541]
[1644931689486,0.00266435,3103.7,3103.5,0.80541]
[1644931689930,0.00266435,3103.7,3103.5,1.61076]
[1644931690328,1.2014,3104.6,3103.5,2.61076]
[1644931690529,1.2014,3104.6,3103.8,0.80528]
[1644931690729,1.37058121,3104.5,3103.8,0.80528]
[1644931690929,0.13819997,3104.8,3103.8,0.80528]
[1644931691334,10.2351,3105.7,3104.0,4.99912921]
[1644931691534,1.370417,3105.6,3104.1,0.465]
[1644931691729,1.370417,3105.6,3105.3,1.12481855]
[1644931691730,4.66817149,3105.6,3105.3,1.12481855]
[1644931691934,1.370417,3105.5,3105.3,1.12481855]
[1644931692132,1.370417,3105.4,3105.3,1.12481855]
[1644931692334,1.36935991,3105.4,3105.3,1.12481855]
[1644931694182,0.80766769,3105.5,3105.3,1.12481855]
[1644931695087,0.00265769,3105.5,3105.3,1.12481855]
[1644931695284,3.33979514,3106.2,3105.3,1.12481855]
[1644931695485,0.00265769,3105.6,3105.4,4.14241437]
[1644931695685,0.00265769,3105.6,3105.4,0.80477]
[1644931695886,0.00265769,3105.6,3105.3,2.12481855]
[1644931696083,0.00265769,3105.6,3105.3,2.42481855]
[1644931696484,0.00355262,3106.3,3105.5,0.80482]
[1644931696688,0.80486,3106.2,3106.1,1.19135589]
[1644931696884,0.80486,3106.2,3105.4,1.60963]
[1644931697086,0.00355262,3106.1,3105.4,2.60963]
[1644931697285,0.00355262,3106.1,3105.4,4.96009621]
[1644931697726,0.80489,3106.1,3105.6,0.80489]
[1644931697926,0.00265769,3105.9,3105.7,1.12658108]
[1644931698928,0.00355262,3106.5,3105.7,1.12658108]
[1644931699133,0.00265769,3106.0,3105.7,1.12658108]
[1644931699428,0.00265769,3106.0,3105.8,0.80484]
[1644931700029,0.00355262,3106.5,3105.8,0.80484]
[1644931700229,0.80833262,3106.5,3106.3,1.00513336]
[1644931700831,0.45616448,3106.2,3105.8,0.80484]
[1644931701031,0.00355262,3106.1,3105.8,0.80484]
[1644931701290,0.00355262,3106.1,3105.8,1.90952]
[1644931701490,0.00355262,3106.1,3105.9,0.6437127]
[1644931701687,0.46237479,3106.2,3105.9,0.6437127]
[1644931701887,0.46237479,3106.2,3105.9,1.6437127]
[1644931702196,0.46237479,3106.2,3106.0,0.99875222]
[1644931702389,0.4597171,3106.2,3106.1,0.80467]
[1644931702686,0.46237479,3106.2,3106.1,0.80467]
[1644931702886,0.46237479,3106.2,3106.1,1.80467]
[1644931703688,0.4597171,3106.2,3106.1,1.80467]
[1644931704089,0.4597171,3106.2,3106.1,0.80467]
[1644931704288,0.4597171,3106.2,3106.1,2.10467]
[1644931704487,0.4597171,3106.2,3106.1,1.10467]
[1644931705140,0.4597171,3106.2,3106.1,0.3]
[1644931705340,0.4597171,3106.2,3106.0,1.29875222]
[1644931705542,0.4597171,3106.2,3106.0,2.29875222]
[1644931705939,0.4597171,3106.2,3106.0,1.29875222]
[1644931706137,0.4597171,3106.2,3106.0,2.29875222]
[1644931706336,0.4597171,3106.2,3106.0,1.29875222]
[1644931706539,0.4597171,3106.2,3106.0,0.99875222]
[1644931708238,0.4597171,3106.2,3105.8,0.80484]
[1644931708440,3.18587085,3106.1,3105.8,0.80484]
[1644931708685,0.00355262,3106.0,3105.8,0.80484]
[1644931708883,0.00355262,3106.1,3105.8,0.80484]
[1644931709283,0.00355262,3106.1,3105.9,1.16430691]
[1644931709489,0.4597171,3106.2,3106.0,0.80481]
[1644931709682,0.4597171,3106.2,3105.9,1.16430691]
[1644931709886,0.46237479,3106.2,3105.9,1.16430691]
[1644931710783,0.4597171,3106.2,3105.9,1.16430691]
[1644931711283,1.26724479,3106.2,3105.9,1.16430691]
[1644931711984,1.2645871,3106.2,3105.9,1.16430691]
[1644931712438,0.46237479,3106.2,3105.9,1.16430691]
[1644931713234,0.4597171,3106.2,3105.4,1.04368713]
[1644931713435,0.4597171,3106.2,3105.5,1.06038188]
[1644931713732,0.46237479,3106.2,3105.5,1.36038188]
[1644931714534,0.4597171,3106.2,3105.5,1.36038188]
[1644931714734,0.00265769,3106.0,3105.5,2.16517188]
[1644931714940,0.00265769,3106.0,3105.9,0.80483]
[1644931715735,0.4597171,3106.2,3105.9,0.80483]
[1644931715935,0.00080115,3106.1,3105.9,0.80483]
[1644931716788,0.00080115,3106.1,3106.0,0.99408642]
[1644931716988,0.4597171,3106.2,3106.0,1.79891642]
[1644931717189,0.46051825,3106.2,3106.0,1.79891642]
[1644931717987,0.4597171,3106.2,3106.0,0.99408642]
[1644931719689,0.4597171,3106.2,3106.0,1.79892642]
[1644931720733,0.4597171,3106.2,3106.0,2.44273772]
[1644931721335,0.4597171,3106.2,3106.1,0.3]
[1644931724584,0.00265769,3106.3,3106.1,6.1]
[1644931724783,0.00265769,3106.3,3106.2,0.80468]
[1644931725286,3.0513,3107.1,3106.2,0.80468]
[1644931725483,3.0513,3107.1,3106.2,2.41404]
[1644931725684,0.00265769,3106.4,3106.2,2.41404]
[1644931725883,0.00265769,3106.4,3106.2,3.8624719]
[1644931726284,0.00265769,3106.4,3106.2,3.0577919]
[1644931726483,3.0513,3107.1,3106.2,1.4484319]
[1644931726684,3.0513,3107.1,3106.1,4.0014936]
[1644931726685,3.0513,3107.1,3106.5,0.8047]
[1644931726884,3.0513,3107.1,3106.6,0.93739902]
[1644931727083,1.47819994,3107.4,3106.6,0.93739902]
[1644931727283,0.27639994,3107.4,3107.2,1.12871537]
[1644931727536,0.33226779,3106.8,3106.4,1.19060398]
[1644931727946,0.33226779,3106.8,3106.6,1.60934]
[1644931728937,0.33226779,3106.8,3106.6,2.2530722]
[1644931729138,0.33226779,3106.8,3106.7,0.80465]
[1644931730542,0.33226779,3106.8,3106.7,2.0918978]
[1644931734083,3.00641308,3107.6,3106.7,2.0918978]
[1644931734285,1.3695784,3107.5,3106.9,0.80464]
[1644931734684,1.3695784,3107.5,3107.3,0.94537019]
[1644931734685,2.9788484,3107.5,3107.3,0.94537019]
[1644931734932,4.61833029,3107.4,3107.3,0.94537019]
[1644931735131,4.61833029,3107.4,3106.2,1.2874004]
[1644931735333,1.3695784,3107.3,3106.3,0.3]
[1644931735533,3.36504975,3107.2,3106.2,1.2874004]
[1644931735735,1.3695784,3107.1,3106.2,1.2874004]
[1644931735934,3.2050357,3107.0,3106.5,0.80473]
[1644931736134,1.3695784,3106.9,3106.5,0.80473]
[1644931736332,1.3695784,3106.9,3106.7,0.91391346]
[1644931737133,3.20728417,3106.8,3106.7,0.91391346]
[1644931737332,1.3695784,3106.8,3106.7,0.91391346]
[1644931737533,2.1743753,3106.9,3106.7,0.91391346]
[1644931737733,1.6695784,3106.8,3106.7,0.91391346]
[1644931738532,4.84906463,3106.8,3106.7,0.91391346]
[1644931739390,1.6695784,3106.8,3106.7,0.91391346]
[1644931740783,1.3695784,3106.8,3106.7,0.91391346]
[1644931741182,1.3695784,3106.9,3106.7,0.91391346]
[1644931741382,1.3695784,3106.8,3106.7,0.91391346]
[1644931741782,1.3695784,3106.9,3106.7,1.71860346]
[1644931741984,1.3695784,3106.8,3106.7,0.91391346]
[1644931742632,1.3695784,3106.9,3106.7,0.91391346]
[1644931742832,1.3695784,3106.8,3106.7,0.91391346]
[1644931743234,1.3695784,3106.9,3106.7,0.91391346]
[1644931743832,1.3695784,3106.9,3106.4,1.60938]
[1644931744033,1.3695784,3106.9,3104.9,8.78735653]
[1644931744034,3.29216293,3106.8,3105.5,1.60962]
[1644931744235,0.80493,3106.5,3105.0,4.2685]
[1644931744435,1.83811326,3106.4,3105.0,4.2685]
[1644931744633,1.3695784,3106.3,3105.0,4.2746]
[1644931744833,1.3695784,3106.3,3106.0,1.07364829]
[1644931744834,2.5562784,3106.3,3106.0,1.07364829]
[1644931745033,1.3695784,3106.3,3106.0,1.07364829]
[1644931745634,2.1745284,3106.3,3106.0,1.07364829]
[1644931745934,1.3695784,3106.2,3106.0,1.07364829]
[1644931746191,1.3695784,3106.2,3105.2,2.41482]
[1644931746486,3.965,3106.1,3105.0,3.141]
[1644931746684,1.3695784,3106.0,3104.7,1.0]
[1644931746885,1.8345784,3106.0,3104.6,2.2034]
[1644931747084,2.5757784,3105.9,3104.6,2.2034]
[1644931747283,1.3695784,3105.8,3104.6,2.2034]
[1644931747485,1.3695784,3105.8,3105.4,1.07000241]
[1644931747486,0.80506,3105.6,3105.4,1.07000241]
[1644931748586,4.70331305,3105.5,3105.4,1.07000241]
[1644931748788,1.37003399,3105.5,3105.4,1.07000241]
[1644931748984,0.80506,3105.6,3105.4,1.07000241]
[1644931749189,0.80511,3105.4,3104.4,1.2042]
[1644931749385,0.80511,3105.4,3104.3,1.0]
[1644931749386,3.50526607,3105.3,3104.3,1.0]
[1644931749584,2.02821,3105.4,3104.3,1.0]
[1644931749787,0.3,3105.3,3104.7,0.80509]
[1644931750237,1.5231,3105.4,3105.2,0.96499062]
[1644931750440,0.3,3105.4,3105.2,0.96499062]
[1644931750632,3.6985394,3105.7,3105.2,0.96499062]
[1644931750633,1.10507,3105.6,3105.2,0.96499062]
[1644931750834,3.24207988,3105.5,3105.2,0.96499062]
[1644931751339,3.19207988,3105.5,3104.5,1.61013]
[1644931751532,3.19207988,3105.5,3104.5,1.91013]
[1644931751739,1.37020734,3105.4,3104.0,3.81133323]
[1644931751934,5.11051,3105.3,3104.0,2.52315233]
[1644931752134,0.80533,3105.1,3104.0,2.52315233]
[1644931752334,1.37020734,3105.0,3103.9,1.61043]
[1644931752534,1.67020734,3105.0,3104.4,0.92120322]
[1644931752733,1.10533,3105.1,3104.4,0.92120322]
[1644931752936,2.17559389,3105.0,3104.4,0.92120322]
[1644931753133,2.4158468,3105.0,3104.4,0.92120322]
[1644931753991,3.37507844,3104.9,3104.4,0.92120322]
[1644931754783,0.3,3104.8,3104.4,0.92120322]
[1644931754989,1.10527,3104.8,3104.4,0.92120322]
[1644931755182,3.18894129,3104.7,3104.4,0.92120322]
[1644931755386,3.18894129,3104.7,3103.8,0.8053]
[1644931755387,3.18894129,3104.7,3103.6,10.25388]
[1644931755592,3.18894129,3104.7,3103.6,9.04058]
[1644931755785,3.18894129,3104.7,3103.6,7.43]
[1644931756383,3.18894129,3104.7,3104.3,0.95361377]
[1644931756588,3.99424129,3104.7,3104.3,0.95361377]
[1644931756785,0.805382,3104.6,3104.3,0.95361377]
[1644931757083,3.26232607,3104.5,3104.3,0.95361377]